fUST/lending_fUST_20250218
["ID","MTS","AMOUNT","RATE_DAILY","PERIOD"]
[353480425,1739875841849,-189.158,0.00014191,2]
[353480426,1739875841859,-500.0,0.00014236,2]
[353480427,1739875841869,-500.0,0.00014237,2]
[353480428,1739875841878,-500.0,0.00014237,2]
[353480429,1739875841888,-500.0,0.00014237,2]
[353480430,1739875841897,-267.48,0.00014237,2]
[353480431,1739875841906,-571.41,0.00014237,2]
[353480432,1739875841916,-500.0,0.00014237,2]
[353480433,1739875841925,-500.0,0.00014237,2]
[353480434,1739875841934,-500.0,0.00014237,2]
[353480435,1739875841943,-500.0,0.00014237,2]
[353480436,1739875841953,-500.0,0.00014237,2]
[353480437,1739875841962,-605.86,0.00014238,2]
[353480438,1739875841971,-2547.52,0.00014238,2]
[353480439,1739875841980,-588.96,0.00014238,2]
[353480440,1739875841989,-500.0,0.00014318,2]
[353480441,1739875841999,-70.90515959,0.00014319,2]
[353480442,1739875842054,-429.09484041,0.00014319,2]
[353480443,1739875842065,-500.0,0.00014319,2]
[353480444,1739875842078,-369.68,0.00014319,2]
[353480445,1739875842088,-571.41,0.00014319,2]
[353480446,1739875842097,-500.0,0.00014319,2]
[353480447,1739875842106,-500.0,0.00014319,2]
[353480448,1739875842115,-500.0,0.00014319,2]
[353480449,1739875842125,-500.0,0.00014319,2]
[353480450,1739875842134,-500.0,0.00014319,2]
[353480451,1739875842143,-605.86,0.0001432,2]
[353480452,1739875842153,-2547.52,0.0001432,2]
[353480453,1739875842162,-588.96,0.0001432,2]
[353480454,1739875842171,-500.0,0.000144,2]
[353480455,1739875842180,-500.0,0.00014401,2]
[353480456,1739875842190,-500.0,0.00014401,2]
[353480457,1739875842199,-337.29636351,0.00014401,2]
[353480458,1739875842211,-234.11363649,0.00014401,2]
[353480459,1739875842220,-222.04,0.00014401,2]
[353480460,1739875842230,-500.0,0.00014401,2]
[353480461,1739875842239,-500.0,0.00014401,2]
[353480462,1739875842248,-500.0,0.00014401,2]
[353480463,1739875842258,-500.0,0.00014401,2]
[353480464,1739875842267,-605.86,0.00014403,2]
[353480465,1739875842276,-2547.52,0.00014403,2]
[353480466,1739875842286,-588.96,0.00014403,2]
[353480467,1739875842295,-500.0,0.00014482,2]
[353480468,1739875842306,-500.0,0.00014484,2]
[353480469,1739875842316,-500.0,0.00014484,2]
[353480470,1739875842326,-571.41,0.00014484,2]
[353480471,1739875842335,-500.0,0.00014484,2]
[353480472,1739875842345,-500.0,0.00014484,2]
[353480473,1739875842354,-500.0,0.00014484,2]
[353480474,1739875842363,-500.0,0.00014484,2]
[353480475,1739875842372,-605.86,0.00014485,2]
[353480476,1739875842381,-2547.52,0.00014485,2]
[353480477,1739875842390,-588.96,0.00014485,2]
[353480478,1739875842399,-500.0,0.00014564,2]
[353480479,1739875842408,-500.0,0.00014566,2]
[353480480,1739875842418,-500.0,0.00014566,2]
[353480481,1739875842427,-571.41,0.00014566,2]
[353480482,1739875842437,-565.24,0.00014566,2]
[353480483,1739875842446,-500.0,0.00014566,2]
[353480484,1739875842456,-500.0,0.00014566,2]
[353480485,1739875842465,-500.0,0.00014566,2]
[353480486,1739875842474,-605.86,0.00014567,2]
[353480487,1739875842483,-2000.25382736,0.00014567,2]
[353480488,1739875842495,-477.13672179,0.00014567,2]
[353480489,1739875842525,-319.74145647,0.00013908,2]
[353480504,1739875843006,-180.25854353,0.00013908,2]
[353480505,1739875843015,-70.12945085,0.00014567,2]
[353480506,1739875843025,-588.96,0.00014567,2]
[353480507,1739875843034,-289.48,0.00014647,2]
[353480508,1739875843043,-68.93159486,0.00014648,2]
[353480509,1739875843058,-431.06840514,0.00014648,2]
[353480510,1739875843068,-500.0,0.00014648,2]
[353480511,1739875843078,-571.41,0.00014648,2]
[353480512,1739875843091,-500.0,0.00014648,2]
[353480513,1739875843100,-500.0,0.00014648,2]
[353480514,1739875843109,-500.0,0.00014648,2]
[353480515,1739875843118,-605.86,0.00014649,2]
[353480516,1739875843129,-2547.52,0.00014649,2]
[353480518,1739875843138,-588.96,0.00014649,2]
[353480520,1739875843147,-500.0,0.0001473,2]
[353480522,1739875843158,-583.63582708,0.0001473,2]
[353480523,1739875843168,-571.41,0.0001473,2]
[353480524,1739875843178,-282.41769673,0.0001473,2]
[353480525,1739875843189,-217.58230327,0.0001473,2]
[353480526,1739875843198,-639.84,0.0001473,2]
[353480527,1739875843207,-500.0,0.0001473,2]
[353480529,1739875843216,-89.64052886,0.00014731,2]
[353480531,1739875843228,-516.21947114,0.00014731,2]
[353480532,1739875843238,-510.65018279,0.00014731,2]
[353480544,1739875846093,-313.52814585,0.00014731,2]
[353480545,1739875846147,-1723.34167136,0.00014731,2]
[353480547,1739875846159,-588.96,0.00014731,2]
[353480549,1739875846169,-500.0,0.00014812,2]
[353480551,1739875846178,-571.41,0.00014812,2]
[353480553,1739875846187,-500.0,0.00014812,2]
[353480555,1739875846196,-500.0,0.00014812,2]
[353480557,1739875846205,-605.86,0.00014813,2]
[353480559,1739875846214,-2547.52,0.00014813,2]
[353480561,1739875846223,-588.96,0.00014813,2]
[353480563,1739875846232,-629.02,0.00014895,2]
[353480565,1739875846241,-571.41,0.00014895,2]
[353480567,1739875846250,-500.0,0.00014895,2]
[353480569,1739875846260,-500.0,0.00014895,2]
[353480571,1739875846269,-605.86,0.00014896,2]
[353480573,1739875846278,-2547.52,0.00014896,2]
[353480575,1739875846287,-588.96,0.00014896,2]
[353480577,1739875846298,-571.41,0.00014977,2]
[353480579,1739875846308,-500.0,0.00014977,2]
[353480581,1739875846317,-500.0,0.00014977,2]
[353480583,1739875846327,-605.86,0.00014978,2]
[353480585,1739875846336,-2547.52,0.00014978,2]
[353480587,1739875846346,-588.96,0.00014978,2]
[353480588,1739875846356,-571.41,0.00015059,2]
[353480589,1739875846365,-558.27925015,0.00015059,2]
[353480590,1739875846374,-500.0,0.00015059,2]
[353480591,1739875846384,-605.86,0.0001506,2]
[353480592,1739875846393,-2547.52,0.0001506,2]
[353480593,1739875846403,-588.96,0.0001506,2]
[353480594,1739875846412,-571.41,0.00015141,2]
[353480595,1739875846422,-500.0,0.00015141,2]
[353480596,1739875846431,-605.86,0.00015142,2]
[353480597,1739875846441,-2547.52,0.00015142,2]
[353480598,1739875846450,-588.96,0.00015142,2]
[353480599,1739875846460,-571.41,0.00015223,2]
[353480600,1739875846469,-500.0,0.00015223,2]
[353480601,1739875846478,-605.86,0.00015224,2]
[353480602,1739875846487,-340.18458781,0.00015224,2]
[353480603,1739875846499,-2207.33541219,0.00015224,2]
[353480604,1739875846508,-588.96,0.00015224,2]
[353480605,1739875846518,-571.41,0.00015306,2]
[353480606,1739875846527,-217.22,0.00015306,2]
[353480607,1739875846536,-605.86,0.00015307,2]
[353480608,1739875846546,-2547.52,0.00015307,2]
[353480609,1739875846555,-588.96,0.00015307,2]
[353480610,1739875846569,-571.41,0.00015388,2]
[353480611,1739875846579,-605.86,0.00015389,2]
[353480612,1739875846588,-2547.52,0.00015389,2]
[353480613,1739875846597,-588.96,0.00015389,2]
[353480614,1739875846607,-571.41,0.0001547,2]
[353480615,1739875846617,-605.86,0.00015471,2]
[353480616,1739875846626,-2547.52,0.00015471,2]
[353480617,1739875846635,-588.96,0.00015471,2]
[353480618,1739875846644,-600.0,0.00015534,2]
[353480619,1739875846653,-571.41,0.00015552,2]
[353480620,1739875846663,-605.86,0.00015553,2]
[353480621,1739875846672,-2547.52,0.00015553,2]
[353480622,1739875846682,-588.96,0.00015553,2]
[353480623,1739875846691,-571.41,0.00015634,2]
[353480624,1739875846700,-605.86,0.00015635,2]
[353480625,1739875846710,-2547.52,0.00015635,2]
[353480626,1739875846720,-588.96,0.00015635,2]
[353480627,1739875846729,-571.41,0.00015716,2]
[353480628,1739875846738,-605.86,0.00015718,2]
[353480629,1739875846747,-2547.52,0.00015718,2]
[353480630,1739875846757,-588.96,0.00015718,2]
[353480631,1739875846766,-400.0,0.00015775,2]
[353480632,1739875846776,-571.57,0.00015799,2]
[353480633,1739875846785,-605.884,0.000158,2]
[353480634,1739875846794,-2547.65129982,0.000158,2]
[353480635,1739875846803,-589.01,0.000158,2]
[353480636,1739875846814,-499.0,0.00016164,2]
[353480637,1739875846823,-153.0,0.00016356,2]
[353480638,1739875846832,-154.7234452,0.00016356,2]
[353480639,1739875846842,-216.0000907,0.00016356,2]
[353480640,1739875846852,-153.0,0.00016356,2]
[353480641,1739875846938,-216.0000907,0.00016356,2]
[353480642,1739875846947,-154.7234452,0.00016356,2]
[353480643,1739875846957,-154.7234452,0.00016356,2]
[353480644,1739875846967,-216.0000907,0.00016356,2]
[353480645,1739875846976,-153.0,0.00016356,2]
[353480646,1739875846985,-216.0000907,0.00016356,2]
[353480647,1739875846995,-155.3958759,0.00016356,2]
[353480648,1739875847004,-502.5063814,0.00016356,2]
[353480649,1739875847014,-153.0,0.00016356,2]
[353480650,1739875847023,-153.0,0.00016356,2]
[353480651,1739875847032,-538.0,0.00016643,2]
[353480652,1739875847042,-1971.0,0.00016643,2]
[353480653,1739875847051,-2291.0,0.00016643,2]
[353480654,1739875847062,-247.0,0.00016643,2]
[353480655,1739875847071,-396.0,0.00016643,2]
[353480656,1739875847080,-151.513,0.00016643,2]
[353480657,1739875847093,-600.0,0.00016904,2]
[353480658,1739875847102,-153.0,0.00017178,2]
[353480659,1739875847111,-153.0,0.00017178,2]
[353480660,1739875847120,-153.0,0.00017178,2]
[353480661,1739875847130,-153.0,0.00017178,2]
[353480662,1739875847140,-164.882553,0.00017178,2]
[353480663,1739875847149,-154.7234452,0.00017378,2]
[353480664,1739875847158,-216.0000907,0.00017378,2]
[353480665,1739875847169,-499.0,0.00017534,4]
[353480666,1739875847179,-177.3282364,0.00017639,2]
[353480667,1739875847189,-3000.0,0.000179,2]
[353480668,1739875847199,-160.905099,0.00017999,7]
[353480669,1739875847209,-1074.3469031,0.00018,5]
[353480670,1739876299187,400.0,9.041e-05,2]
[353480671,1739876481763,20086.65752416,0.00017322,120]
[353480672,1739876500392,3998.22491268,0.00017322,120]
[353480673,1739876746103,-195.7894704,0.00012928,2]
[353480674,1739876746124,-158.8405508,0.00013629,2]
[353480675,1739876746145,-158.8405508,0.00013767,2]
[353480676,1739876746168,-277.64126562,0.00013905,2]
[353480677,1739876838075,-153.60593254,0.00013766,2]
[353480678,1739876838103,-300.0,0.00013904,2]
[353480679,1739876838128,-222.35873438,0.00013905,2]
[353480680,1739876838154,-500.0,0.00013905,2]
[353480681,1739876838181,-74.53627662,0.00013905,2]
[353480682,1739876846114,-370.49212937,0.00013905,2]
[353480683,1739876851092,-54.97159401,0.00013905,2]
[353480684,1739876851113,-500.0,0.00013905,2]
[353480685,1739876851135,-108.01232377,0.00013905,2]
[353480686,1739876947120,-391.98767623,0.00013905,2]
[353480687,1739876947145,-500.0,0.00013905,2]
[353480688,1739876947167,-500.0,0.00013905,2]
[353480689,1739876947189,-500.0,0.00013905,2]
[353480690,1739876947211,-500.0,0.00013905,2]
[353480691,1739876947235,-303.69975208,0.00013905,2]
[353480723,1739877032398,-196.30024792,0.00013905,2]
[353480725,1739877032408,-298.63026314,0.00013905,2]
[353480726,1739877032417,-500.0,0.00013905,2]
[353480728,1739877032426,-500.0,0.00013905,2]
[353480729,1739877032435,-562.06485446,0.00013905,2]
[353480730,1739877032444,-500.0,0.00013905,2]
[353480731,1739877032453,-500.0,0.00013905,2]
[353480732,1739877032462,-500.0,0.00013905,2]
[353480733,1739877032471,-500.0,0.00013905,2]
[353480734,1739877032480,-500.0,0.00013905,2]
[353480735,1739877032489,-500.0,0.00013905,2]
[353480736,1739877032500,-500.0,0.00013905,2]
[353480737,1739877032509,-500.0,0.00013905,2]
[353480738,1739877032518,-500.0,0.00013905,2]
[353480739,1739877032527,-500.0,0.00013905,2]
[353480740,1739877032537,-500.0,0.00013905,2]
[353480741,1739877032546,-500.0,0.00013905,2]
[353480742,1739877032556,-500.0,0.00013905,2]
[353480743,1739877032565,-500.0,0.00013905,2]
[353480744,1739877032575,-500.0,0.00013905,2]
[353480745,1739877032585,-500.0,0.00013905,2]
[353480746,1739877032594,-500.0,0.00013905,2]
[353480747,1739877032603,-500.0,0.00013905,2]
[353480748,1739877032612,-395.04852961,0.00013905,2]
[353480749,1739877032621,-28.86403704,0.00013905,2]
[353480750,1739877032661,-471.13596296,0.00013905,2]
[353480751,1739877032671,-624.09,0.00013905,2]
[353480752,1739877032680,-328.1730189,0.00013905,2]
[353480753,1739877032693,-500.0,0.00013905,2]
[353480754,1739877032703,-500.0,0.00013905,2]
[353480755,1739877032712,-500.0,0.00013905,2]
[353480756,1739877032721,-500.0,0.00013905,2]
[353480757,1739877032730,-500.0,0.00013905,2]
[353480758,1739877032739,-500.0,0.00013905,2]
[353480759,1739877032748,-500.0,0.00013905,2]
[353480760,1739877032757,-574.08,0.00013905,2]
[353480761,1739877032767,-500.0,0.00013905,2]
[353480762,1739877032776,-500.0,0.00013905,2]
[353480763,1739877032786,-500.0,0.00013905,2]
[353480764,1739877032796,-500.0,0.00013905,2]
[353480765,1739877032805,-500.0,0.00013905,2]
[353480766,1739877032815,-500.0,0.00013905,2]
[353480767,1739877032824,-500.0,0.00013906,2]
[353480768,1739877032833,-500.0,0.00013906,2]
[353480769,1739877032843,-500.0,0.00013906,2]
[353480770,1739877032852,-500.0,0.00013906,2]
[353480771,1739877032862,-500.0,0.00013906,2]
[353480772,1739877032871,-500.0,0.00013906,2]
[353480773,1739877032881,-513.00845363,0.00013906,2]
[353480774,1739877032891,-500.0,0.00013906,2]
[353480775,1739877032901,-500.0,0.00013906,2]
[353480776,1739877032911,-500.0,0.00013906,2]
[353480777,1739877032920,-500.0,0.00013906,2]
[353480778,1739877032930,-500.0,0.00013906,2]
[353480779,1739877032939,-500.0,0.00013906,2]
[353480780,1739877032948,-500.0,0.00013906,2]
[353480781,1739877032958,-627.47,0.00013906,2]
[353480782,1739877032967,-608.79672195,0.00013906,2]
[353480783,1739877032977,-500.0,0.00013906,2]
[353480784,1739877032986,-500.0,0.00013906,2]
[353480785,1739877032995,-550.08500919,0.00013906,2]
[353480786,1739877033006,-500.0,0.00013906,2]
[353480787,1739877033016,-530.16,0.00013906,2]
[353480788,1739877033025,-500.0,0.00013906,2]
[353480789,1739877033036,-500.0,0.00013906,2]
[353480790,1739877033047,-500.0,0.00013906,2]
[353480791,1739877033058,-500.0,0.00013906,2]
[353480792,1739877033069,-632.99,0.00013906,2]
[353480793,1739877033079,-500.0,0.00013906,2]
[353480794,1739877033089,-500.0,0.00013906,2]
[353480795,1739877033100,-500.0,0.00013906,2]
[353480796,1739877033110,-500.0,0.00013906,2]
[353480797,1739877033120,-500.0,0.00013906,2]
[353480798,1739877033130,-500.0,0.00013906,2]
[353480799,1739877033140,-500.0,0.00013906,2]
[353480800,1739877033149,-500.0,0.00013906,2]
[353480801,1739877033159,-500.0,0.00013906,2]
[353480802,1739877033168,-500.0,0.00013906,2]
[353480803,1739877033178,-500.0,0.00013906,2]
[353480804,1739877033188,-500.0,0.00013906,2]
[353480805,1739877033197,-500.0,0.00013906,2]
[353480806,1739877033207,-500.0,0.00013906,2]
[353480807,1739877033216,-500.0,0.00013906,2]
[353480808,1739877033227,-500.0,0.00013906,2]
[353480809,1739877033237,-500.0,0.00013906,2]
[353480810,1739877033248,-500.0,0.00013906,2]
[353480811,1739877033259,-500.0,0.00013906,2]
[353480812,1739877033269,-500.0,0.00013906,2]
[353480813,1739877033279,-500.0,0.00013906,2]
[353480814,1739877033289,-500.0,0.00013906,2]
[353480815,1739877033300,-500.0,0.00013906,2]
[353480816,1739877033310,-500.0,0.00013906,2]
[353480817,1739877033320,-500.0,0.00013906,2]
[353480818,1739877033330,-500.0,0.00013906,2]
[353480819,1739877033340,-500.0,0.00013906,2]
[353480820,1739877033351,-500.0,0.00013906,2]
[353480821,1739877033361,-500.0,0.00013906,2]
[353480822,1739877033371,-585.69355321,0.00013906,2]
[353480823,1739877033382,-500.0,0.00013906,2]
[353480824,1739877033392,-500.0,0.00013906,2]
[353480825,1739877033403,-500.0,0.00013906,2]
[353480826,1739877033413,-500.0,0.00013906,2]
[353480827,1739877033423,-615.45,0.00013906,2]
[353480828,1739877033434,-500.0,0.00013906,2]
[353480829,1739877033445,-296.5,0.00013906,2]
[353480830,1739877033456,-594.61,0.00013906,2]
[353480831,1739877033466,-500.0,0.00013906,2]
[353480832,1739877033476,-500.0,0.00013906,2]
[353480833,1739877033486,-500.0,0.00013906,2]
[353480834,1739877033497,-500.0,0.00013906,2]
[353480835,1739877033507,-500.0,0.00013906,2]
[353480836,1739877033517,-635.2,0.00013906,2]
[353480837,1739877033527,-500.0,0.00013906,2]
[353480838,1739877033538,-500.0,0.00013906,2]
[353480839,1739877033547,-500.0,0.00013906,2]
[353480840,1739877033557,-500.0,0.00013906,2]
[353480841,1739877033566,-500.0,0.00013906,2]
[353480842,1739877033577,-500.0,0.00013906,2]
[353480843,1739877033586,-500.0,0.00013906,2]
[353480844,1739877033596,-500.0,0.00013906,2]
[353480845,1739877033606,-500.0,0.00013906,2]
[353480846,1739877033615,-500.0,0.00013906,2]
[353480847,1739877033732,-500.0,0.00013906,2]
[353480848,1739877033741,-500.0,0.00013906,2]
[353480849,1739877033752,-500.0,0.00013906,2]
[353480850,1739877033762,-1089.13,0.00013906,2]
[353480851,1739877033772,-500.0,0.00013906,2]
[353480852,1739877033781,-500.0,0.00013906,2]
[353480853,1739877033790,-500.0,0.00013906,2]
[353480854,1739877033800,-500.0,0.00013906,2]
[353480855,1739877033809,-500.0,0.00013906,2]
[353480856,1739877033819,-500.0,0.00013906,2]
[353480857,1739877033829,-500.0,0.00013906,2]
[353480858,1739877033839,-500.0,0.00013906,2]
[353480859,1739877033848,-500.0,0.00013906,2]
[353480860,1739877033857,-570.92,0.00013906,2]
[353480861,1739877033866,-597.85,0.00013907,2]
[353480862,1739877033876,-647.7,0.00013907,2]
[353480863,1739877033886,-500.0,0.00013907,2]
[353480864,1739877033896,-500.0,0.00013908,2]
[353480865,1739877033906,-470.31981135,0.00013987,2]
[353480866,1739877033916,-500.0,0.00013987,2]
[353480867,1739877033926,-585.14,0.00013987,2]
[353480868,1739877033936,-500.0,0.00013987,2]
[353480869,1739877033945,-205.2,0.00013987,2]
[353480870,1739877033955,-500.0,0.00013987,2]
[353480871,1739877033964,-500.0,0.00013987,2]
[353480872,1739877033974,-500.0,0.00013987,2]
[353480873,1739877033984,-500.0,0.00013987,2]
[353480874,1739877033993,-191.54,0.00013987,2]
[353480875,1739877034003,-500.0,0.00013987,2]
[353480876,1739877034012,-500.0,0.00013987,2]
[353480877,1739877034021,-500.0,0.00013987,2]
[353480878,1739877034031,-623.82,0.00013987,2]
[353480879,1739877034040,-405.56,0.00013987,2]
[353480880,1739877034049,-500.0,0.00013987,2]
[353480881,1739877034059,-344.51,0.00013987,2]
[353480882,1739877034069,-211.55,0.00013987,2]
[353480883,1739877034080,-500.0,0.00013987,2]
[353480884,1739877034089,-500.0,0.00013987,2]
[353480885,1739877034098,-271.45,0.00013989,2]
[353480886,1739877034107,-354.94,0.00013989,2]
[353480887,1739877034117,-167.64,0.00013989,2]
[353480888,1739877034127,-340.12,0.00013989,2]
[353480889,1739877034136,-220.27,0.00013989,2]
[353480890,1739877034146,-154.06,0.00013989,2]
[353480891,1739877034154,-332.81,0.00013989,2]
[353480892,1739877034163,-168.42,0.00013989,2]
[353480893,1739877034171,-597.85,0.00013989,2]
[353480894,1739877034180,-204.11,0.00013989,2]
[353480895,1739877034190,-287.41,0.00013989,2]
[353480896,1739877034199,-500.0,0.00013989,2]
[353480897,1739877034208,-1089.13,0.00013989,2]
[353480898,1739877034217,-454.65,0.00013989,2]
[353480899,1739877034227,-200.18,0.00013989,2]
[353480900,1739877034237,-500.0,0.00013989,2]
[353480901,1739877034247,-500.0,0.00013989,2]
[353480902,1739877034258,-500.0,0.0001407,2]
[353480903,1739877034268,-559.25,0.0001407,2]
[353480904,1739877034278,-500.0,0.0001407,2]
[353480905,1739877034290,-500.0,0.0001407,2]
[353480906,1739877034300,-500.0,0.0001407,2]
[353480907,1739877034310,-500.0,0.0001407,2]
[353480908,1739877034321,-500.0,0.0001407,2]
[353480909,1739877034332,-500.0,0.0001407,2]
[353480910,1739877034342,-439.1,0.0001407,2]
[353480911,1739877034352,-157.65,0.0001407,2]
[353480912,1739877034362,-171.89,0.0001407,2]
[353480913,1739877034371,-500.0,0.0001407,2]
[353480914,1739877034381,-597.85,0.00014071,2]
[353480915,1739877034392,-262.42,0.00014071,2]
[353480916,1739877034402,-1089.13,0.00014071,2]
[353480917,1739877034411,-500.0,0.00014071,2]
[353480918,1739877034422,-489.41333353,0.00014152,2]
[353480919,1739877034432,-371.06760409,0.00014152,2]
[353480920,1739877034442,-500.0,0.00014152,2]
[353480921,1739877034454,-500.0,0.00014152,2]
[353480922,1739877034477,-500.0,0.00014152,2]
[353480923,1739877034500,-500.0,0.00014152,2]
[353480924,1739877034522,-270.56,0.00014152,2]
[353480925,1739877034543,-500.0,0.00014152,2]
[353480926,1739877034564,-597.85,0.00014153,2]
[353480927,1739877034592,-1089.13,0.00014153,2]
[353480928,1739877034620,-264.1,0.00014153,2]
[353480929,1739877034646,-500.0,0.00014164,2]
[353480930,1739877034657,-151.326,0.00014199,2]
[353480931,1739877034666,-192.64,0.00014234,2]
[353480932,1739877034675,-500.0,0.00014234,2]
[353480933,1739877034684,-500.0,0.00014234,2]
[353480934,1739877034694,-500.0,0.00014234,2]
[353480935,1739877034703,-500.0,0.00014234,2]
[353480936,1739877034712,-1089.13,0.00014235,2]
[353480937,1739877034721,-597.85,0.00014236,2]
[353480938,1739877034730,-500.0,0.00014316,2]
[353480939,1739877034739,-500.0,0.00014316,2]
[353480940,1739877034748,-208.52,0.00014316,2]
[353480941,1739877034757,-158.39,0.00014316,2]
[353480942,1739877034766,-1089.13,0.00014317,2]
[353480943,1739877034775,-597.85,0.00014318,2]
[353480944,1739877034783,-500.0,0.00014398,2]
[353480945,1739877034792,-500.0,0.00014398,2]
[353480946,1739877034801,-597.85,0.000144,2]
[353480947,1739877034811,-1089.13,0.000144,2]
[353480948,1739877034820,-500.0,0.00014481,2]
[353480949,1739877034829,-500.0,0.00014481,2]
[353480950,1739877034839,-597.85,0.00014482,2]
[353480951,1739877034848,-1089.13,0.00014482,2]
[353480952,1739877034857,-500.0,0.00014563,2]
[353480953,1739877034866,-553.33,0.00014563,2]
[353480954,1739877034875,-597.85,0.00014564,2]
[353480955,1739877034885,-1089.13,0.00014564,2]
[353480956,1739877034895,-500.0,0.00014645,2]
[353480957,1739877034904,-1089.13,0.00014646,2]
[353480958,1739877034914,-597.85,0.00014647,2]
[353480959,1739877034924,-500.0,0.00014727,2]
[353480960,1739877034933,-1089.13,0.00014728,2]
[353480961,1739877034942,-597.85,0.00014729,2]
[353480962,1739877034952,-500.0,0.00014809,2]
[353480963,1739877034961,-1089.13,0.0001481,2]
[353480964,1739877034971,-597.85,0.00014811,2]
[353480965,1739877034980,-285.59,0.00014892,2]
[353480966,1739877034990,-260.32575399,0.00014892,2]
[353480967,1739877035000,-500.0,0.00014892,2]
[353480968,1739877035012,-597.85,0.00014893,2]
[353480969,1739877035024,-1089.13,0.00014893,2]
[353480970,1739877035035,-597.85,0.00014975,2]
[353480971,1739877035046,-1089.13,0.00014975,2]
[353480972,1739877035057,-1089.13,0.00015057,2]
[353480973,1739877035069,-597.85,0.00015058,2]
[353480974,1739877035080,-1089.13,0.00015139,2]
[353480975,1739877035090,-597.85,0.0001514,2]
[353480976,1739877035101,-1089.13,0.00015221,2]
[353480977,1739877035111,-597.85,0.00015222,2]
[353480978,1739877035123,-597.85,0.00015304,2]
[353480979,1739877035134,-1089.13,0.00015304,2]
[353480980,1739877035146,-597.85,0.00015386,2]
[353480981,1739877035156,-1089.13,0.00015386,2]
[353480982,1739877035167,-1089.13,0.00015468,2]
[353480983,1739877035178,-597.85,0.00015469,2]
[353480984,1739877035189,-500.0,0.00015534,2]
[353480985,1739877035200,-1089.13,0.0001555,2]
[353480986,1739877035211,-597.85,0.00015551,2]
[353480987,1739877035222,-1089.13,0.00015632,2]
[353480988,1739877035233,-597.85,0.00015633,2]
[353480989,1739877035243,-597.85,0.00015715,2]
[353480990,1739877035254,-1089.13,0.00015715,2]
[353480991,1739877035265,-400.0,0.00015775,2]
[353480992,1739877035277,-597.85,0.00015797,2]
[353480993,1739877035288,-1089.31034938,0.00015797,2]
[353480994,1739877035301,-499.0,0.00016164,2]
[353480995,1739877035311,-396.0,0.00016524,2]
[353480996,1739877035323,-500.0,0.00016904,2]
[353480997,1739877035334,-153.0,0.00017188,2]
[353480998,1739877035345,-500.0,0.0001721,2]
[353480999,1739877035356,-499.0,0.00017534,4]
[353481000,1739877035368,-177.3282364,0.00017639,2]
[353481001,1739877035380,-3000.0,0.000179,2]
[353481002,1739877035391,-185.66177527,0.000179,2]
[353481003,1739877035402,-553.3161242,0.00017901,2]
[353481004,1739877035414,-160.9051,0.00017999,7]
[353481005,1739877035426,-12864.79211157,0.00018,5]
[353481006,1739877035438,-553.67552215,0.00018,5]
[353481007,1739877035449,-60634.16947234,0.00018,15]
[353481008,1739877035508,-93078.50917002,0.00018,15]